{"text_format":"1","workbook":"xlsx","n_sheets":4,"sheets":["RMA Form","Booking Request","Defect + Serial Number","Sheet3"],"not_rendered":{"charts":0,"images":2,"macros":1,"external_links":0,"defined_names":0,"comments":0,"pivot_tables":0},"unopened":[],"bounds":{"document_bytes":16777216,"sheet_cells":100000,"rows_first":2000,"rows_last":500,"rows_between":2000,"halvings":0,"cell_chars":16384,"cell_head_chars":4096},"cells_cut":0,"cells_raw":0,"read":"whole","date_system":"1900"}

{"sheet":"RMA Form","index":0,"n_rows":56,"n_cols":10,"rows_kept":56,"cut":false,"hidden":false,"merged":[[5,3,5,5],[2,3,2,5],[2,8,3,9],[3,3,3,5],[3,6,3,7],[5,6,5,7],[1,0,1,2],[1,3,1,5],[1,8,1,9],[0,0,0,9],[1,6,1,7],[14,0,14,1],[18,0,19,0],[18,4,19,4],[18,8,18,9],[17,2,17,4],[17,8,17,9]]}
["RMA Request Form"]
["CUSTOMER DETAILS",null,null,"Customer Reference Number",null,null,"Booking Reference",null,"(For Belkin Use)                  Belkin RMA number "]
["Customer Name"]
["Date Request",null,null,"Reason for Return",null,null,"Value of return"]
["Address 1"]
["Address 2",null,null,"Total Number of boxes*",null,null,"Total Number of Pallets*"]
["Address 3"]
["Post Code",null,null,"Notes"]
["City",null,null,"1. Customer details – customer information on Name / Address / Contact numbers/ Contact person / Date of request "]
["Country",null,null,"2. Customer reference number - The original Purchase Order number– or your own internal RMA number."]
["Phone",null,null,"3. Booking reference - To make a booking CLICK HERE on this link or Call: +44 (0) 1933 352 743"]
["Fax",null,null,"4. Reason for return – A separate form is required per reason (For Eg: Defective, Overstock, Stock rotation, Damages, etc.)"]
["Mail",null,null,"5. Part Numbers – The Belkin Part number and/or Customer Part number and/or UPC code."]
["Contact Person",null,null,"6. Quantity – Specify the quantity for each part"]
[null,null,null,"7. Pallet Number / Box Number - Specify the pallet or box number in which the part is located"]
[null,null,null,"8. Part Price – Unit sale price of the part being returned  "]
[]
["Mandatory information",null,"Details of the Return"]
["S.No","Preferred number","and / or ","and / or ","Pallet Number / Box Number",null,null,null,"For Belkin use"]
[null,"Belkin Part #","UPC Code #","Customer Part #",null,"Quantity","Part Price","Total Price","Credit Price","Comments"]
[1,null,null,null,null,null,null,{"$f":"F21*G21","v":0}]
[2,null,null,null,null,null,null,{"$f":"F22*G22","v":0}]
[3,null,null,null,null,null,null,0]
[4,null,null,null,null,null,null,0]
[5,null,null,null,null,null,null,0]
[6,null,null,null,null,null,null,0]
[7,null,null,null,null,null,null,0]
[8,null,null,null,null,null,null,0]
[9,null,null,null,null,null,null,0]
[10,null,null,null,null,null,null,0]
[11,null,null,null,null,null,null,0]
[12,null,null,null,null,null,null,0]
[13,null,null,null,null,null,null,0]
[14,null,null,null,null,null,null,0]
[15,null,null,null,null,null,null,0]
[16,null,null,null,null,null,null,0]
[17,null,null,null,null,null,null,0]
[18,null,null,null,null,null,null,0]
[19,null,null,null,null,null,null,0]
[20,null,null,null,null,null,null,0]
[21,null,null,null,null,null,null,0]
[22,null,null,null,null,null,null,0]
[23,null,null,null,null,null,null,0]
[24,null,null,null,null,null,null,0]
[25,null,null,null,null,null,null,0]
["*=Please put this RMA Request Form on the RMA box/pallet. Without this form it will be refused and sent back"]
["*=Please note that if any of the above information is not filled in correctly it will result to delays in processing your return"]
[]
[]
["Return Address",null,"Belkin Ltd."]
[null,null,"Express Business Park"]
[null,null,"Shipton Way"]
[null,null,"Rushden"]
[null,null,"Northamptonshire"]
[null,null,"NN106GL"]
[null,null,"UK"]

{"sheet":"Booking Request","index":1,"n_rows":21,"n_cols":10,"rows_kept":21,"cut":false,"hidden":false,"merged":[[14,2,14,7],[15,2,15,7],[16,2,16,7],[18,2,18,7],[17,2,17,7],[8,2,8,7],[9,2,9,3],[9,4,9,5],[9,6,9,7],[10,2,10,3],[10,4,10,5],[10,6,10,7],[2,2,2,7],[4,2,4,7],[5,2,5,7],[6,2,6,7],[7,2,7,7],[3,2,3,7]]}
["RMA Booking request",null,null,null,null,null,null,null,null,"Please click here to send request to Belkin"]
["* Please complete all of the below fields before you submit your request *"]
["Person requesting booking :"]
["Haulier:"]
["RMA Customer:"]
["Date of request :"]
["RMA Number :"]
["Pallets / Cartons :"]
["Preferred delivery date :"]
[null,null,"A.M 08:00 - 12:00",null,"P.M 12:00 - 15:30",null,"No preference 08:00 - 15:30"]
["Preferred Time (a.m. / p.m.) :  Please place an X in one …"]
[]
["BELKIN USE"]
[]
["Delivery Booked / Refused :"]
["If Refused, Reason :"]
["Booked Date :"]
["Booked Time"]
["Booking Reference :"]
[]
["** Please ensure you advise us ASAP of any changes to the booking details above, failure to do so could result in the delivery being refused **"]

{"sheet":"Defect + Serial Number","index":2,"n_rows":1,"n_cols":3,"rows_kept":1,"cut":false,"hidden":false,"merged":[]}
["CCP SKU","Serial Number","Defect (one by one)"]

{"sheet":"Sheet3","index":3,"n_rows":6,"n_cols":1,"rows_kept":6,"cut":false,"hidden":false,"merged":[]}
["Customer details – customer information on Name / Address / Contact numbers/ Contact person / Date of request "]
["Part Numbers – The Belkin Part number or Customer Part number and UPC code."]
["Customer reference number - The original Purchase Order number– or your own internal RMA number."]
["Quantity – Specify the quantity for each part"]
["Pallet Number / Box Number - "]
["Part Price – Unit sale price of the part being returned  "]